bitfinex/quotes_BTCUSD_20250525
["timestamp","ask_amount","ask_price","bid_price","bid_amount"]
[1748180709621,0.14129338,107430.0,107420.0,0.997599]
[1748180709856,0.14129338,107430.0,107420.0,1.146199]
[1748180711495,0.14129338,107430.0,107420.0,0.835719]
[1748180711652,0.14129338,107430.0,107420.0,1.146199]
[1748180716658,0.14129338,107430.0,107420.0,0.835719]
[1748180716847,0.14129338,107430.0,107420.0,1.146199]
[1748180718700,0.14129338,107430.0,107420.0,1.17353132]
[1748180718927,0.10009338,107430.0,107420.0,1.17353132]
[1748180719138,0.10009338,107430.0,107420.0,1.26307688]
[1748180719346,0.10009338,107430.0,107420.0,1.26447688]
[1748180719986,0.10009338,107430.0,107420.0,1.26307688]
[1748180723732,0.10009338,107430.0,107420.0,1.26447688]
[1748180725505,0.10009338,107430.0,107420.0,1.26597688]
[1748180726441,0.10009338,107430.0,107420.0,1.26447688]
[1748180727059,0.10009338,107430.0,107420.0,1.28051773]
[1748180727262,0.10009338,107430.0,107420.0,1.30559839]
[1748180728520,0.10009338,107430.0,107420.0,1.30459839]
[1748180728930,0.10009338,107430.0,107420.0,1.31546683]
[1748180729347,0.10009338,107430.0,107420.0,1.31246683]
[1748180729577,0.10009338,107430.0,107420.0,1.31546683]
[1748180729760,0.10009338,107430.0,107420.0,1.31846683]
[1748180732901,0.10009338,107430.0,107420.0,1.70928617]
[1748180734657,0.10009338,107430.0,107420.0,1.70778617]
[1748180736659,0.10009338,107430.0,107420.0,1.70928617]
[1748180739517,0.10009338,107430.0,107420.0,1.70638617]
[1748180739904,0.10009338,107430.0,107420.0,1.53045385]
[1748180740129,0.14059338,107430.0,107420.0,1.67905385]
[1748180740351,0.14059338,107430.0,107420.0,1.70638617]
[1748180740714,0.14059338,107430.0,107420.0,1.39590617]
[1748180740914,0.14059338,107430.0,107420.0,1.70602617]
[1748180741514,0.14059338,107430.0,107420.0,1.67869385]
[1748180742629,0.14059338,107430.0,107420.0,1.36857385]
[1748180742866,0.14059338,107430.0,107420.0,1.67865385]
[1748180747992,0.04059338,107430.0,107420.0,1.67865385]
[1748180748901,0.04059338,107430.0,107420.0,1.53009385]
[1748180749116,0.04059338,107430.0,107420.0,1.354033]
[1748180749322,0.04059338,107430.0,107420.0,1.664113]
[1748180749940,0.04059338,107430.0,107420.0,1.354033]
[1748180750151,0.04059338,107430.0,107420.0,1.664113]
[1748180750489,0.04059338,107430.0,107420.0,1.248213]
[1748180755767,0.04059338,107430.0,107420.0,1.247933]
[1748180758611,0.04059338,107430.0,107420.0,0.938133]
[1748180758827,0.04059338,107430.0,107420.0,1.247933]
[1748180759276,0.04059338,107430.0,107420.0,1.099373]
[1748180759420,0.04059338,107430.0,107420.0,1.247933]
[1748180760841,0.04059338,107430.0,107420.0,0.938133]
[1748180761047,0.04059338,107430.0,107420.0,1.247933]
[1748180762515,0.04059338,107430.0,107420.0,1.23906456]
[1748180762991,0.04059338,107430.0,107420.0,0.92926456]
[1748180763202,0.04059338,107430.0,107420.0,0.839719]
[1748180763415,0.04059338,107430.0,107420.0,1.149559]
[1748180764364,0.04059338,107430.0,107420.0,0.839719]
[1748180764546,0.04059338,107430.0,107420.0,1.149559]
[1748180764969,0.04059338,107430.0,107420.0,0.957053]
[1748180765181,0.04059338,107430.0,107420.0,0.6804]
[1748180765466,0.04059338,107430.0,107420.0,0.65024]
[1748180766521,0.04059338,107430.0,107420.0,0.6804]
[1748180766729,0.04059338,107430.0,107420.0,0.99024]
[1748180773050,0.04059338,107430.0,107420.0,1.528371]
[1748180773486,0.04059338,107430.0,107420.0,1.44101]
[1748180773670,0.04059338,107430.0,107420.0,1.420969]
[1748180774823,0.04059338,107430.0,107420.0,1.44830132]
[1748180775024,0.04059338,107430.0,107420.0,1.56292754]
[1748180775669,0.04059338,107430.0,107420.0,1.53784688]
[1748180776101,9.338e-05,107430.0,107420.0,1.53784688]
[1748180777074,9.338e-05,107430.0,107420.0,1.3127031]
[1748180777279,9.338e-05,107430.0,107420.0,1.19176688]
[1748180779047,0.02029338,107430.0,107420.0,1.19176688]
[1748180779474,0.04039338,107430.0,107420.0,1.19176688]
[1748180780817,0.04039338,107430.0,107420.0,1.16443456]
[1748180782247,0.04039338,107430.0,107420.0,1.50443456]
[1748180782655,0.04039338,107430.0,107420.0,1.53176688]
[1748180787166,0.04039338,107430.0,107420.0,1.50443456]
[1748180792705,0.04039338,107430.0,107420.0,1.55684754]
[1748180795082,0.04039338,107430.0,107420.0,1.53176688]
[1748180796703,0.07511384,107470.0,107420.0,1.20630773]
[1748180796926,0.07520731,107470.0,107430.0,5.19311919]
[1748180797138,0.07520731,107470.0,107440.0,5.05116028]
[1748180797346,0.07520731,107470.0,107450.0,3.665907]
[1748180797551,0.07520731,107470.0,107460.0,0.60920725]
[1748180797764,0.07520731,107470.0,107460.0,0.608047]
[1748180797974,0.07520731,107470.0,107460.0,0.62909488]
[1748180798155,9.347e-05,107470.0,107460.0,0.62909488]
[1748180798382,9.347e-05,107470.0,107460.0,0.22143288]
[1748180798591,9.347e-05,107470.0,107460.0,0.17447788]
[1748180799001,0.00709347,107470.0,107460.0,0.02104788]
[1748180799414,0.00709347,107470.0,107450.0,0.30964]
[1748180799614,0.00709347,107470.0,107460.0,0.131983]
[1748180799836,0.04689347,107470.0,107460.0,0.131983]
[1748180800574,0.04689347,107470.0,107460.0,0.471983]
[1748180801656,0.04289347,107470.0,107460.0,0.34]
[1748180802075,0.04489347,107470.0,107460.0,0.34]
[1748180802484,0.04289347,107470.0,107460.0,0.34]
[1748180802926,0.04689347,107470.0,107460.0,0.535732]
[1748180803149,0.04680695,107470.0,107460.0,0.535732]
[1748180803441,0.04680695,107470.0,107460.0,0.55477863]
[1748180804853,0.04680695,107470.0,107460.0,0.535732]
[1748180806463,0.04280695,107470.0,107460.0,0.535732]
[1748180806875,0.04480695,107470.0,107460.0,0.535732]
[1748180807289,0.04180695,107470.0,107460.0,0.535732]
[1748180807541,0.04180695,107470.0,107460.0,0.51828]
[1748180807720,0.04380695,107470.0,107460.0,0.34]
[1748180807917,0.04380695,107470.0,107460.0,0.53169]
[1748180808519,0.04380695,107470.0,107460.0,0.470634]
[1748180808722,0.04380695,107470.0,107460.0,0.34]
[1748180808925,0.04380695,107470.0,107460.0,0.52333]
[1748180809080,0.04380695,107470.0,107460.0,0.34]
[1748180809491,0.04380695,107470.0,107460.0,0.484857]
[1748180810280,0.04380695,107470.0,107460.0,0.34]
[1748180810988,0.04380695,107470.0,107460.0,0.522189]
[1748180814345,0.04380695,107470.0,107460.0,0.28965099]
[1748180814768,0.04380695,107470.0,107460.0,0.182189]
[1748180819056,0.04380695,107470.0,107460.0,0.106656]
[1748180821073,0.04380695,107470.0,107460.0,0.1078163]
[1748180821298,0.04380695,107470.0,107460.0,0.106656]
[1748180821511,0.00400695,107470.0,107460.0,0.10781592]
[1748180821719,0.00400695,107470.0,107460.0,0.2246938]
[1748180821920,0.00400695,107470.0,107460.0,0.22353388]
[1748180822370,0.00400695,107470.0,107460.0,0.56353388]
[1748180822623,0.00200695,107470.0,107460.0,0.56353388]
[1748180822846,0.00300695,107470.0,107460.0,0.56353388]
[1748180823421,0.00200695,107470.0,107460.0,0.56353388]
[1748180823672,6.95e-06,107470.0,107460.0,0.56453388]
[1748180824231,0.00100695,107470.0,107460.0,0.60063388]
[1748180824459,6.95e-06,107470.0,107460.0,0.56453388]
[1748180824681,6.95e-06,107470.0,107460.0,0.58323388]
[1748180824906,6.95e-06,107470.0,107460.0,0.60163388]
[1748180825764,6.95e-06,107470.0,107460.0,0.58423388]
[1748180825975,6.95e-06,107470.0,107460.0,0.56553388]
[1748180829906,6.95e-06,107470.0,107460.0,0.53820156]
[1748180830901,0.03930695,107470.0,107460.0,0.53820156]
[1748180833162,0.03930695,107470.0,107460.0,0.84760156]
[1748180833784,0.03930695,107470.0,107460.0,0.53820156]
[1748180834057,0.03930695,107470.0,107460.0,0.448656]
[1748180834517,0.03930695,107470.0,107460.0,0.758056]
[1748180835642,0.03930695,107470.0,107460.0,0.3114]
[1748180835860,0.03930695,107470.0,107460.0,2.746861]
[1748180836073,0.03930695,107470.0,107460.0,2.645943]
[1748180836308,0.03930695,107470.0,107460.0,1.796404]
[1748180837495,0.03930695,107470.0,107460.0,2.136404]
[1748180844555,0.03930695,107470.0,107460.0,2.136444]
[1748180844766,0.03930695,107470.0,107460.0,1.827044]
[1748180844975,0.03930695,107470.0,107460.0,2.116661]
[1748180851471,6.95e-06,107470.0,107460.0,2.23353888]
[1748180852702,6.95e-06,107470.0,107460.0,2.01377406]
[1748180852950,6.95e-06,107470.0,107460.0,1.89153888]
[1748180855523,6.95e-06,107470.0,107460.0,1.86420656]
[1748180855705,0.04230695,107470.0,107460.0,1.86420656]
[1748180856725,0.04230695,107470.0,107460.0,2.20420656]
[1748180859868,0.02090695,107470.0,107460.0,2.20420656]
[1748180860098,6.95e-06,107470.0,107460.0,2.20420656]
[1748180860770,0.051,107480.0,107460.0,2.23153888]
[1748180860771,0.04854102,107480.0,107460.0,2.23153888]
[1748180861029,0.04854102,107480.0,107470.0,2.418902]
[1748180861491,0.04854102,107480.0,107470.0,2.645424]
[1748180861920,0.04854102,107480.0,107470.0,2.65911759]
[1748180862357,0.04854102,107480.0,107470.0,2.54215659]
[1748180862571,0.04954102,107480.0,107470.0,2.54215659]
[1748180863722,0.04954102,107480.0,107470.0,2.42729559]
[1748180864261,0.05054102,107480.0,107470.0,2.42729559]
[1748180864471,0.05054102,107480.0,107470.0,2.09140659]
[1748180864676,0.05054102,107480.0,107470.0,2.01296159]
[1748180865308,0.05054102,107480.0,107470.0,0.50672159]
[1748180865536,0.05054102,107480.0,107470.0,0.80600359]
[1748180865792,0.05054102,107480.0,107470.0,0.65721359]
[1748180866881,0.05054102,107480.0,107470.0,0.75855659]
[1748180867108,0.05054102,107480.0,107470.0,0.50865359]
[1748180867330,0.05344842,107480.0,107470.0,0.50865359]
[1748180867544,0.05344842,107480.0,107470.0,0.65721359]
[1748180867759,0.05344842,107480.0,107470.0,0.65717359]
[1748180868261,0.05054102,107480.0,107470.0,0.65717359]
[1748180870646,0.05054102,107480.0,107470.0,0.34789359]
[1748180870861,0.05054102,107480.0,107470.0,0.65721359]
[1748180872150,0.05054102,107480.0,107470.0,0.34789359]
[1748180872467,0.05054102,107480.0,107470.0,0.65721359]
[1748180873939,0.14008658,107480.0,107470.0,0.66077359]
[1748180875781,0.14299425,107480.0,107470.0,0.66077359]
[1748180881267,0.14299425,107480.0,107470.0,0.32657359]
[1748180887350,0.05054102,107480.0,107470.0,1.12039391]
[1748180887570,0.05054102,107480.0,107470.0,0.85366859]
[1748180888227,0.05054102,107480.0,107470.0,0.60182759]
[1748180888814,0.00954102,107480.0,107470.0,0.60182759]
[1748180890880,0.04994102,107480.0,107470.0,0.60182759]
[1748180892744,0.00954102,107480.0,107470.0,0.94182759]
[1748180893507,0.00954102,107480.0,107470.0,0.96162759]
[1748180893874,0.00954102,107480.0,107470.0,0.94182759]
[1748180896754,0.00954102,107480.0,107470.0,1.27602759]
[1748180898625,0.00954102,107480.0,107470.0,1.45808613]
[1748180898828,0.00954102,107480.0,107470.0,1.43300547]
[1748180899635,0.00854102,107480.0,107470.0,1.44187443]
[1748180900449,0.00754102,107480.0,107470.0,1.44187443]
[1748180900877,0.00754102,107480.0,107470.0,1.41454211]
[1748180903628,0.00754102,107480.0,107470.0,1.40567315]
[1748180903830,0.00754102,107480.0,107470.0,1.38537315]
[1748180904063,0.00754102,107480.0,107470.0,1.36557315]
[1748180905417,0.00754102,107480.0,107470.0,1.43300547]
[1748180909733,0.00754102,107480.0,107470.0,1.40567315]
[1748180910268,0.00754102,107480.0,107470.0,1.36557315]
[1748180911710,0.00754102,107480.0,107470.0,1.21701315]
[1748180911955,0.00754102,107480.0,107470.0,1.36553315]
[1748180912180,0.04824102,107480.0,107470.0,0.93407815]
[1748180912392,0.04824102,107480.0,107470.0,1.00617259]
[1748180912633,0.04824102,107480.0,107470.0,0.50953359]
[1748180912850,0.04824102,107480.0,107470.0,0.65805359]
[1748180913485,0.13778658,107480.0,107470.0,0.65805359]
[1748180913698,0.13778658,107480.0,107470.0,0.34789359]
[1748180913918,0.14069428,107480.0,107470.0,0.65805359]
[1748180914137,0.14069428,107480.0,107470.0,0.34789359]
[1748180914357,0.14069445,107480.0,107470.0,0.49584]
[1748180915727,0.14069445,107480.0,107470.0,0.49588]
[1748180915946,0.14169445,107480.0,107470.0,0.49588]
[1748180916146,0.14269445,107480.0,107470.0,0.49588]
[1748180916774,0.1572353,107480.0,107470.0,0.3342]
[1748180917204,0.0395,107470.0,107460.0,0.3102]
[1748180917458,0.12904556,107470.0,107460.0,0.3102]
[1748180919309,0.13004556,107470.0,107460.0,0.3102]
[1748180920299,0.0415,107470.0,107460.0,0.3102]
[1748180920456,0.0415,107470.0,107460.0,0.845966]
[1748180920689,0.0415,107470.0,107460.0,1.047742]
[1748180920896,0.0415,107470.0,107460.0,0.594382]
[1748180921659,0.0415,107470.0,107460.0,0.551351]
[1748180923623,0.0415,107470.0,107460.0,0.891351]
[1748180925022,0.0415,107470.0,107460.0,0.581151]
[1748180925223,0.0415,107470.0,107460.0,0.891391]
[1748180927729,0.0415,107470.0,107460.0,0.847393]
[1748180927943,0.0415,107470.0,107460.0,0.507393]
[1748180928756,0.0415,107470.0,107460.0,0.466851]
[1748180930099,0.0415,107470.0,107460.0,0.156611]
[1748180930319,0.0415,107470.0,107460.0,0.413735]
[1748180932982,0.0415,107470.0,107440.0,0.34]
[1748180932983,0.0408,107460.0,107440.0,0.34]
[1748180933189,0.0408,107460.0,107450.0,0.31024]
[1748180933421,0.0408,107460.0,107450.0,0.562609]
[1748180934402,0.0408,107460.0,107450.0,0.532212]
[1748180935050,0.0408,107460.0,107450.0,0.437722]
[1748180935268,0.0408,107460.0,107450.0,0.415484]
[1748180936331,0.0408,107460.0,107450.0,0.606924]
[1748180936543,0.0408,107460.0,107450.0,0.65124]
[1748180936926,0.0408,107460.0,107450.0,0.758943]
[1748180937891,0.0408,107460.0,107450.0,0.766484]
[1748180938112,0.0408,107460.0,107450.0,0.65124]
[1748180938322,0.0408,107460.0,107450.0,0.766484]
[1748180938543,0.0408,107460.0,107450.0,0.341]
[1748180938761,0.0408,107460.0,107450.0,0.6504]
[1748180940707,0.0408,107460.0,107450.0,0.973763]
[1748180942232,0.0408,107460.0,107450.0,0.664363]
[1748180942442,0.0408,107460.0,107450.0,0.973763]
[1748180946764,0.04095016,107470.0,107450.0,0.973763]
[1748180946983,0.04095016,107470.0,107460.0,0.802192]
[1748180948845,0.04295016,107470.0,107460.0,0.802192]
[1748180952475,0.04295016,107470.0,107460.0,1.142192]
[1748180954243,0.04295016,107470.0,107460.0,1.14206296]
[1748180962053,0.04295016,107470.0,107460.0,1.29062296]
[1748180964843,0.04295016,107470.0,107460.0,1.45146296]
[1748180979191,0.04295016,107470.0,107460.0,1.30290296]
[1748180979404,0.04295016,107470.0,107460.0,1.45146296]
[1748180983367,0.04295016,107470.0,107460.0,1.14206296]
[1748180983577,0.13540353,107470.0,107460.0,0.64932]
[1748180985436,0.13249572,107470.0,107460.0,0.64932]
[1748180995593,0.13249572,107470.0,107460.0,0.50076]
[1748180995845,0.13249572,107470.0,107460.0,0.64932]
[1748180996870,0.13249572,107470.0,107460.0,0.34]
[1748180997131,0.13249572,107470.0,107460.0,0.64916]
[1748181005575,0.13249572,107470.0,107460.0,0.5006]
[1748181005818,0.13249572,107470.0,107460.0,0.64916]
[1748181007481,0.04295016,107470.0,107460.0,0.64916]
[1748181007696,0.00205016,107470.0,107460.0,0.64916]
[1748181007902,0.04345016,107470.0,107460.0,1.297419]
[1748181010077,0.04345016,107470.0,107460.0,1.282241]
[1748181010286,0.04345016,107470.0,107460.0,1.019477]
[1748181010492,0.04345016,107470.0,107460.0,0.635216]
[1748181010706,0.04345016,107470.0,107460.0,0.773548]
[1748181023315,0.00205016,107470.0,107460.0,0.773548]
[1748181024707,0.00205016,107470.0,107460.0,0.80088032]
[1748181024925,0.00205016,107470.0,107460.0,0.773548]
[1748181029707,0.00205016,107470.0,107460.0,0.624988]
[1748181029912,0.00205016,107470.0,107460.0,0.773548]
[1748181031472,0.02175016,107470.0,107460.0,0.773548]
[1748181034871,0.04045016,107470.0,107460.0,0.773548]
[1748181037066,0.00205016,107470.0,107460.0,0.773548]
[1748181038391,0.02055016,107470.0,107460.0,0.773548]
[1748181040138,0.03975016,107470.0,107460.0,0.773548]
[1748181041504,0.00205016,107470.0,107460.0,0.773548]
[1748181041703,0.00205016,107470.0,107460.0,0.95110654]
[1748181042931,0.00105016,107470.0,107460.0,0.95110654]
[1748181043134,5.016e-05,107470.0,107460.0,0.92602588]
[1748181044236,5.016e-05,107470.0,107460.0,0.93787924]
[1748181044646,5.016e-05,107470.0,107460.0,0.93687924]
[1748181045089,5.016e-05,107470.0,107460.0,0.93887924]
[1748181046067,5.016e-05,107470.0,107460.0,0.72288437]
[1748181046379,5.016e-05,107470.0,107460.0,0.59887924]
[1748181047697,5.016e-05,107470.0,107460.0,0.57154692]
[1748181049486,5.016e-05,107470.0,107460.0,0.91154692]
[1748181049688,5.016e-05,107470.0,107460.0,0.89434692]
[1748181050423,5.016e-05,107470.0,107460.0,0.87594692]
[1748181050873,5.016e-05,107470.0,107460.0,0.87574692]
[1748181051080,0.03955016,107470.0,107460.0,0.87574692]
[1748181051481,0.03955016,107470.0,107460.0,0.86689356]
[1748181052205,5.016e-05,107470.0,107460.0,0.86689356]
[1748181053974,0.03955016,107470.0,107460.0,0.86689356]
[1748181056712,0.03955016,107470.0,107460.0,0.87574076]
[1748181059091,0.03955016,107470.0,107460.0,0.56678076]
[1748181059264,0.03955016,107470.0,107460.0,0.87550076]
[1748181062157,0.03955016,107470.0,107460.0,1.20970076]
[1748181066230,5.016e-05,107470.0,107460.0,1.25984161]
[1748181066447,0.13295473,107490.0,107470.0,0.36733232]
[1748181066659,0.13300491,107490.0,107480.0,3.72714156]
[1748181066866,0.13300491,107490.0,107480.0,3.72598256]
[1748181067069,0.13300491,107490.0,107480.0,3.44604056]
[1748181067882,0.13300491,107490.0,107480.0,3.39311956]
[1748181068123,0.13400491,107490.0,107480.0,3.37298656]
[1748181069114,0.13400491,107490.0,107480.0,3.21890756]
[1748181069666,0.13500491,107490.0,107480.0,3.21890756]
[1748181070986,0.13500491,107490.0,107480.0,3.20470856]
[1748181074517,0.13500491,107490.0,107480.0,3.36490856]
[1748181078157,0.13500491,107490.0,107480.0,3.25308583]
[1748181079361,0.13500491,107490.0,107480.0,3.58724583]
[1748181086223,0.13500491,107490.0,107480.0,3.71463256]
[1748181086752,0.09650491,107490.0,107480.0,4.08953256]
[1748181086955,0.08418282,107490.0,107480.0,4.15648639]
[1748181087292,0.07675868,107490.0,107480.0,4.18434439]
[1748181087734,0.06833454,107490.0,107480.0,4.18434439]
[1748181087940,0.06733454,107490.0,107480.0,4.19518705]
[1748181088141,0.05991243,107490.0,107480.0,4.19718705]
[1748181088524,0.05249032,107490.0,107480.0,4.19718705]
[1748181088730,0.05249032,107490.0,107480.0,4.17210639]
[1748181088933,0.04506821,107490.0,107480.0,4.17210639]
[1748181089441,0.0376461,107490.0,107480.0,4.17210639]
[1748181089824,0.03022399,107490.0,107480.0,4.17210639]
[1748181090230,0.02280188,107490.0,107480.0,4.02358639]
[1748181090435,0.02280188,107490.0,107480.0,4.19718705]
[1748181090636,0.01,107500.0,107480.0,4.19718705]
[1748181090833,0.01,107500.0,107490.0,4.98257088]
[1748181091033,0.00257789,107500.0,107490.0,4.98257088]
[1748181091529,0.01240138,107510.0,107500.0,0.01454085]
[1748181091737,0.01240138,107510.0,107500.0,4.93547941]
[1748181092711,0.05080138,107510.0,107500.0,5.27547941]
[1748181093857,0.05080138,107510.0,107500.0,3.91831656]
[1748181094060,0.05180138,107510.0,107500.0,3.91831656]
[1748181094253,0.05180138,107510.0,107500.0,3.89398856]
[1748181094504,0.05180138,107510.0,107500.0,3.30727656]
[1748181094710,0.05280138,107510.0,107500.0,1.46631456]
[1748181095820,0.05280138,107510.0,107500.0,1.068369]
[1748181096031,0.05280138,107510.0,107500.0,0.74966]
[1748181096260,0.0386,107490.0,107480.0,0.33416]
[1748181096478,0.0386,107490.0,107480.0,2.10063956]
[1748181096685,0.0386,107490.0,107480.0,1.18368856]
[1748181097090,0.0386,107490.0,107480.0,1.30684656]
[1748181097303,0.0386,107490.0,107480.0,1.29054656]
[1748181097513,0.0386,107490.0,107480.0,1.25915956]
[1748181097714,0.0386,107490.0,107480.0,1.26215956]
[1748181098634,0.0386,107490.0,107480.0,0.56275889]
[1748181099037,0.0386,107490.0,107480.0,0.55675889]
[1748181099332,0.0386,107490.0,107480.0,0.55775889]
[1748181099791,0.0386,107490.0,107480.0,0.70523889]
[1748181100903,0.0386,107490.0,107480.0,0.55675889]
[1748181101119,0.0386,107490.0,107480.0,0.38538489]
[1748181101320,0.0386,107490.0,107480.0,0.53386489]
[1748181101980,0.0386,107490.0,107480.0,0.30944]
[1748181106409,0.0286,107490.0,107480.0,0.30944]
[1748181106887,0.0286,107490.0,107480.0,0.548378]
[1748181108278,0.0286,107490.0,107480.0,0.534171]
[1748181109199,0.0286,107490.0,107480.0,0.30944]
[1748181110337,0.0286,107490.0,107480.0,0.479933]
[1748181114614,0.0286,107490.0,107480.0,0.16092]
[1748181114814,0.0286,107490.0,107480.0,0.30944]
[1748181116269,0.0286,107490.0,107480.0,0.16092]
[1748181116401,0.11814556,107490.0,107480.0,0.16092]
[1748181116610,0.11814556,107490.0,107480.0,0.30944]
[1748181118787,0.11814556,107490.0,107480.0,0.64944]
[1748181120503,0.11814556,107490.0,107480.0,0.50092]
[1748181120708,0.11814556,107490.0,107480.0,0.64944]
[1748181122146,0.0286,107490.0,107480.0,0.64944]
[1748181122354,0.0286,107490.0,107480.0,0.67677232]
[1748181122767,0.0286,107490.0,107480.0,0.64944]
[1748181128353,0.0286,107490.0,107480.0,0.50092]
[1748181128634,0.0286,107490.0,107480.0,0.64944]
[1748181138949,0.11814556,107490.0,107480.0,0.50092]
[1748181139192,0.11814556,107490.0,107480.0,0.64944]
[1748181140041,0.11814556,107490.0,107480.0,0.341]
[1748181140256,0.11814556,107490.0,107480.0,0.64932]
[1748181140480,0.12105293,107490.0,107480.0,0.64932]
[1748181141349,0.12305293,107490.0,107480.0,0.64932]
[1748181141761,0.12305293,107490.0,107480.0,0.64832]
[1748181142177,0.12505293,107490.0,107480.0,0.64832]
[1748181142383,0.12505293,107490.0,107480.0,0.1598]
[1748181143224,0.0375,107480.0,107460.0,0.43416]
[1748181143448,0.1299532,107470.0,107460.0,0.43421018]
[1748181143633,0.1299532,107470.0,107460.0,0.74257018]
[1748181144429,0.1299532,107470.0,107460.0,0.74357018]
[1748181144869,0.1299532,107470.0,107460.0,0.43521018]
[1748181145210,0.1319532,107470.0,107460.0,0.74357018]
[1748181145413,0.1783532,107470.0,107460.0,0.59505018]
[1748181145606,0.1783532,107470.0,107460.0,0.43421018]
[1748181145980,0.1793532,107470.0,107460.0,0.10005018]
[1748181146495,0.1783532,107470.0,107460.0,0.10005018]
[1748181146994,0.1803532,107470.0,107460.0,0.10005018]
[1748181147480,0.24253487,107470.0,107460.0,0.10005018]
[1748181147690,0.23962723,107470.0,107460.0,0.10005018]
[1748181147860,0.24062723,107470.0,107460.0,0.10005018]
[1748181149649,0.0375,107460.0,107450.0,0.15984]
[1748181149856,0.12995384,107460.0,107450.0,0.15993347]
[1748181152381,0.13095384,107460.0,107450.0,0.15993347]
[1748181157942,0.13095384,107460.0,107450.0,9.347e-05]
[1748181158076,0.13095384,107460.0,107450.0,0.15981347]
[1748181158508,0.13095384,107460.0,107450.0,9.347e-05]
[1748181158686,0.12995384,107460.0,107450.0,9.347e-05]
[1748181159120,0.13095384,107460.0,107450.0,9.347e-05]
[1748181159494,0.12995384,107460.0,107450.0,9.347e-05]
[1748181159912,0.13395384,107460.0,107450.0,9.347e-05]
[1748181160723,0.13695384,107460.0,107450.0,9.347e-05]
[1748181168201,0.15149469,107460.0,107450.0,9.347e-05]
[1748181172560,0.0183,107450.0,107430.0,0.30836]
[1748181172760,0.11399469,107460.0,107430.0,0.30841016]
[1748181172761,0.12945433,107440.0,107430.0,0.30841016]
[1748181174883,0.12945433,107440.0,107430.0,0.15976]
[1748181175296,0.13045433,107440.0,107430.0,0.15976]
[1748181175940,0.13045433,107440.0,107430.0,0.30836]
[1748181176329,0.13045433,107440.0,107430.0,0.15976]
[1748181176516,0.13045433,107440.0,107430.0,0.30836]
[1748181187263,0.0186,107430.0,107400.0,0.47066]
[1748181187446,0.0375,107430.0,107420.0,0.15964]
[1748181187734,0.0189,107410.0,107400.0,0.43445338]
[1748181187985,0.12704556,107410.0,107400.0,0.74269338]
[1748181188206,0.12704556,107410.0,107400.0,1.08269338]
[1748181188679,0.12704556,107410.0,107400.0,0.74369338]
[1748181188894,0.12704556,107410.0,107400.0,1.08369338]
[1748181189108,0.12704556,107410.0,107400.0,1.08469338]
[1748181189748,0.12704556,107410.0,107400.0,1.08369338]
[1748181190011,0.12904556,107410.0,107400.0,1.08269338]
[1748181190243,0.13104556,107410.0,107400.0,1.08269338]
[1748181190575,0.13104556,107410.0,107400.0,0.59409338]
[1748181190781,0.13104556,107410.0,107400.0,0.74269338]
[1748181191798,0.13104556,107410.0,107400.0,0.74260657]
[1748181193355,0.11244556,107410.0,107400.0,0.74260657]
[1748181193912,0.11244556,107410.0,107400.0,0.74251978]
[1748181194515,0.11535507,107410.0,107400.0,0.74251978]
[1748181194722,0.13094556,107410.0,107400.0,0.74251978]
[1748181194936,0.13094556,107410.0,107400.0,0.59391978]
[1748181195145,0.13094556,107410.0,107400.0,0.74255978]
[1748181195349,0.13385507,107410.0,107400.0,0.74255978]
[1748181196142,0.13385507,107410.0,107400.0,0.59391978]
[1748181196324,0.13385507,107410.0,107400.0,0.74255978]
[1748181196768,0.13094556,107410.0,107400.0,0.74255978]
[1748181198414,0.13094556,107410.0,107400.0,0.59391978]
[1748181198622,0.13094556,107410.0,107400.0,0.74255978]
[1748181199470,0.13094556,107410.0,107400.0,0.59391978]
[1748181199672,0.13094556,107410.0,107400.0,0.74255978]
[1748181206313,0.09354556,107410.0,107400.0,0.74255978]
[1748181206513,0.09354556,107410.0,107400.0,0.76145978]
[1748181206722,0.09354556,107410.0,107400.0,0.77895978]
[1748181206921,0.09354556,107410.0,107400.0,0.74255978]
[1748181209997,0.09354556,107410.0,107400.0,0.76135978]
[1748181210215,0.09354556,107410.0,107400.0,0.74255978]
[1748181212509,0.11144556,107410.0,107400.0,0.74255978]
[1748181212921,0.09354556,107410.0,107400.0,0.74255978]
[1748181213141,0.09354556,107410.0,107400.0,0.15968]
[1748181214014,0.11144556,107410.0,107400.0,0.15968]
[1748181214441,0.11144556,107410.0,107400.0,0.30832]
[1748181215246,0.11144556,107410.0,107350.0,0.50484844]
[1748181215459,0.11144556,107410.0,107370.0,0.07561554]
[1748181215668,0.11144556,107410.0,107390.0,0.34]
[1748181215883,0.11144556,107410.0,107400.0,0.00116373]
[1748181216118,0.13114556,107410.0,107400.0,0.00116373]
[1748181216557,0.12914556,107410.0,107400.0,0.48980373]
[1748181216764,0.12914556,107410.0,107400.0,0.48864]
[1748181216991,0.12714556,107410.0,107400.0,0.48864]
[1748181217425,0.12914556,107410.0,107400.0,0.48864]
[1748181217643,0.12914556,107410.0,107400.0,0.64824]
[1748181218102,0.13114556,107410.0,107400.0,0.64824]
[1748181223256,0.11144556,107410.0,107400.0,0.64824]
[1748181225144,0.13044556,107410.0,107400.0,0.64824]
[1748181230796,0.004,107410.0,107400.0,0.64824]
[1748181231004,0.004,107410.0,107400.0,1.332631]
[1748181231216,0.0227,107410.0,107400.0,1.332631]
[1748181232533,0.0227,107410.0,107400.0,1.306353]
[1748181234413,0.004,107410.0,107400.0,1.306353]
[1748181235254,0.0225,107410.0,107400.0,1.306353]
[1748181235909,0.004,107410.0,107400.0,1.306353]
[1748181236325,0.0225,107410.0,107400.0,1.306353]
[1748181238208,0.0421,107410.0,107400.0,1.306353]
[1748181239724,0.0421,107410.0,107400.0,1.22477]
[1748181240673,0.004,107410.0,107400.0,1.22477]
[1748181240911,0.004,107410.0,107400.0,1.37095081]
[1748181241405,0.004,107410.0,107400.0,1.34587018]
[1748181241849,0.002,107410.0,107400.0,1.34587018]
[1748181242231,0.002,107410.0,107400.0,1.3547419]
[1748181242958,0.17094333,107430.0,107400.0,1.3547419]
[1748181243158,0.17094333,107430.0,107420.0,0.34]
[1748181243395,0.17094333,107430.0,107420.0,0.48864]
[1748181244884,0.17394333,107430.0,107420.0,0.48864]
[1748181246013,0.17694333,107430.0,107420.0,0.48864]
[1748181246568,0.1442,107430.0,107420.0,0.48864]
[1748181248842,0.1256,107430.0,107420.0,0.48864]
[1748181249261,0.1256,107430.0,107420.0,2.300206]
[1748181249460,0.106,107430.0,107420.0,3.88323925]
[1748181249660,0.03504892,107430.0,107420.0,5.68602081]
[1748181249891,0.03504892,107430.0,107420.0,5.70056166]
[1748181250214,0.03274333,107460.0,107440.0,0.0077]
[1748181250341,0.0328938,107460.0,107450.0,4.76588405]